[Event "Kupreichik Memorial Rapid 2019"]
[Site "Minsk"]
[Date "2019.08.16"]
[Round "7.31"]
[White "Kasperovich, Mikhail"]
[Black "Kolosovskaya, Olga"]
[Result "0-1"]
[ECO "D16"]
[WhiteElo "1324"]
[BlackElo "1719"]
[Annotator "NA"]
[PlyCount "144"]
[EventDate "2019.08.15"]
[EventType "swiss"]
[EventCountry "BLR"]
[SourceTitle "playchess.com"]
[Source "ChessBase"]
[SourceQuality "1"]
[TimeControl "900+10"]

1. d4 {[%emt 0:00:00]} d5 {[%emt 0:00:00]} 2. Nf3 {[%emt 0:00:00]} Nf6 {[%emt 0:00:00]} 3. c4 {[%emt 0:00:00]} c6 {[%emt 0:00:00]} 4. Nc3 {[%emt 0:00:00]} dxc4 {[%emt 0:00:34]} 5. a4 {[%emt 0:00:19]} e6 {[%emt 0:03:14]} 6. e3 {[%emt 0:00:03]} Be7 {[%emt 0:00:27]} 7. Bxc4 {[%emt 0:00:05]} O-O {[%emt 0:00:02]} 8. O-O {[%emt 0:00:07]} b6 {[%emt 0:00:19]} 9. b3 {[%emt 0:00:45]} Bb7 {[%emt 0:00:02]} 10. Bb2 {[%emt 0:00:19]} a6 {[%emt 0:00:24]} 11. Rc1 {[%emt 0:03:34]} b5 {[%emt 0:00:01]} 12. axb5 {[%emt 0:00:08]} cxb5 {[%emt 0:00:01]} 13. Bd3 {[%emt 0:00:04]} Qb6 {[%emt 0:00:17]} 14. Ne5 {[%emt 0:02:36]} Nc6 {[%emt 0:00:30]} 15. Nxc6 {[%emt 0:00:09]} Bxc6 {[%emt 0:00:02]} 16. Qc2 {[%emt 0:00:11]} Rac8 {[%emt 0:00:19]} 17. Qb1 {[%emt 0:00:08]} b4 {[%emt 0:02:13]} 18. Ne4 {[%emt 0:00:16]} Nxe4 {[%emt 0:00:03]} 19. Bxe4 {[%emt 0:00:02]} Bxe4 {[%emt 0:00:03]} 20. Qxe4 {[%emt 0:00:08]} Bf6 {[%emt 0:01:28]} 21. Rc2 {[%emt 0:00:25]} Rxc2 {[%emt 0:00:03]} 22. Qxc2 {[%emt 0:00:02]} g6 {[%emt 0:00:28]} 23. Rc1 {[%emt 0:00:08]} Kg7 {[%emt 0:00:43]} 24. h3 {[%emt 0:04:45]} Rb8 {[%emt 0:00:02]} 25. Kf1 {[%emt 0:00:16]} Qb5+ {[%emt 0:03:19]} 26. Ke1 {[%emt 0:00:29]} Qd5 {[%emt 0:00:46]} 27. Kf1 {[%emt 0:01:18]} Qb5+ {[%emt 0:00:32]} 28. Ke1 {[%emt 0:00:04]} e5 {[%emt 0:00:26]} 29. Qe4 {[%emt 0:02:52]} exd4 30. Bxd4 {[%emt 0:00:06]} Bxd4 {[%emt 0:00:55]} 31. Qxd4+ {[%emt 0:00:01]} Kg8 {[%emt 0:00:01]} 32. Rc5 {[%emt 0:00:21]} Qb6 {[%emt 0:00:15]} 33. Rc4 {[%emt 0:00:28]} Qb7 {[%emt 0:00:15]} 34. Qe4 {[%emt 0:00:04]} Qb5 {[%emt 0:00:15]} 35. Qd4 {[%emt 0:00:15]} Qa5 {[%emt 0:00:12]} 36. Rc5 {[%emt 0:00:18]} Qa3 {[%emt 0:00:03]} 37. Qc4 {[%emt 0:00:03]} Qa1+ {[%emt 0:00:03]} 38. Ke2 {[%emt 0:00:01]} Qb2+ {[%emt 0:00:04]} 39. Kf3 {[%emt 0:00:00]} Qf6+ {[%emt 0:00:03]} 40. Qf4 {[%emt 0:00:01]} Qb6 {[%emt 0:00:42]} 41. Rc7 {[%emt 0:00:02]} Qe6 {[%emt 0:00:14]} 42. Rc4 {[%emt 0:00:16]} Qd5+ {[%emt 0:00:11]} 43. Ke2 {[%emt 0:00:13]} Rd8 {[%emt 0:00:35]} 44. Rd4 {[%emt 0:00:02]} Qb5+ {[%emt 0:00:01]} 45. Kf3 {[%emt 0:00:11]} Qc6+ {[%emt 0:00:08]} 46. Ke2 {[%emt 0:00:09]} Qc2+ {[%emt 0:00:51]} 47. Kf3 {[%emt 0:00:24]} Rxd4 {[%emt 0:00:04]} 48. Qxd4 {[%emt 0:00:01]} Qxb3 {[%emt 0:00:02]} 49. Qd8+ {[%emt 0:00:03]} Kg7 {[%emt 0:00:02]} 50. Qd4+ {[%emt 0:00:05]} f6 {[%emt 0:00:03]} 51. Qa7+ {[%emt 0:00:04]} Qf7 {[%emt 0:00:05]} 52. Qxa6 {[%emt 0:00:04]} Qd5+ {[%emt 0:00:09]} 53. Kg3 {[%emt 0:00:22]} Qe5+ {[%emt 0:00:08]} 54. Kf3 {[%emt 0:00:04]} Qd5+ {[%emt 0:00:04]} 55. Kg3 {[%emt 0:00:01]} b3 {[%emt 0:00:03]} 56. Qa7+ {[%emt 0:00:47]} Kh6 {[%emt 0:00:03]} 57. Qb6 {[%emt 0:00:09]} Qe5+ {[%emt 0:00:05]} 58. Kf3 {[%emt 0:00:02]} b2 {[%emt 0:00:03]} 59. Ke2 {[%emt 0:00:05]} Qc3 {[%emt 0:00:06]} 60. Qb8 {[%emt 0:00:33]} Qc2+ {[%emt 0:00:12]} 61. Kf3 {[%emt 0:00:00]} b1=Q {[%emt 0:00:38]} 62. Qf8+ {[%emt 0:00:02]} Kg5 {[%emt 0:00:04]} 63. h4+ {[%emt 0:00:08]} Kf5 {[%emt 0:00:07]} 64. g4+ {[%emt 0:00:05]} Ke5 {[%emt 0:00:09]} 65. Qe7+ {[%emt 0:00:09]} Kd5 {[%emt 0:00:02]} 66. Qd7+ {[%emt 0:00:23]} Kc4 {[%emt 0:00:04]} 67. Qc6+ {[%emt 0:00:06]} Kb3 {[%emt 0:00:05]} 68. Qb5+ {[%emt 0:00:03]} Ka2 {[%emt 0:00:05]} 69. Qa5+ {[%emt 0:00:08]} Kb2 {[%emt 0:00:03]} 70. Qb4+ {[%emt 0:00:04]} Qb3 {[%emt 0:00:04]} 71. Qd4+ {[%emt 0:00:11]} Kc1 {[%emt 0:00:10]} 72. Qc5+ {[%emt 0:00:19]} Q1c2 0-1

[Event "Kupreichik Memorial Rapid 2019"]
[Site "Minsk"]
[Date "2019.08.16"]
[Round "7.32"]
[White "Ostrovskiy, Viktor"]
[Black "Ustiugov, Boris"]
[Result "1/2-1/2"]
[ECO "B22"]
[WhiteElo "1453"]
[BlackElo "1567"]
[Annotator "NA"]
[PlyCount "65"]
[EventDate "2019.08.15"]
[EventType "swiss"]
[EventCountry "BLR"]
[SourceTitle "playchess.com"]
[Source "ChessBase"]
[SourceQuality "1"]
[TimeControl "900+10"]

1. e4 {[%emt 0:00:00]} c5 {[%emt 0:00:00]} 2. c3 {[%emt 0:00:00]} Qa5 {[%emt 0:00:03]} 3. Nf3 {[%emt 0:00:25]} d6 {[%emt 0:00:11]} 4. Be2 {[%emt 0:00:10]} Nc6 {[%emt 0:00:12]} 5. O-O {[%emt 0:00:06]} g6 {[%emt 0:00:26]} 6. d4 {[%emt 0:00:05]} cxd4 {[%emt 0:00:13]} 7. cxd4 {[%emt 0:00:03]} Bg7 {[%emt 0:00:05]} 8. Nc3 {[%emt 0:00:36]} Bg4 {[%emt 0:00:20]} 9. Be3 {[%emt 0:01:41]} Bxf3 {[%emt 0:01:35]} 10. Bxf3 {[%emt 0:00:04]} Nf6 {[%emt 0:00:12]} 11. a3 {[%emt 0:00:42]} O-O {[%emt 0:00:06]} 12. b4 {[%emt 0:00:42]} Qd8 {[%emt 0:00:10]} 13. Rc1 {[%emt 0:00:39]} Rc8 {[%emt 0:00:01]} 14. Qd2 {[%emt 0:00:32]} Re8 {[%emt 0:01:15]} 15. Be2 {[%emt 0:01:22]} a6 {[%emt 0:00:30]} 16. f4 Qd7 {[%emt 0:00:46]} 17. e5 {[%emt 0:01:45]} dxe5 {[%emt 0:01:51]} 18. dxe5 {[%emt 0:00:10]} Qxd2 {[%emt 0:00:18]} 19. Bxd2 {[%emt 0:00:03]} Nd7 {[%emt 0:00:52]} 20. Bg4 {[%emt 0:01:52]} e6 {[%emt 0:00:19]} 21. Ne4 {[%emt 0:00:17]} h5 {[%emt 0:01:07]} 22. Bf3 {[%emt 0:00:42]} Nd4 {[%emt 0:01:45]} 23. Nd6 {[%emt 0:00:34]} Nxf3+ {[%emt 0:00:20]} 24. Rxf3 {[%emt 0:00:36]} Rxc1+ {[%emt 0:00:17]} 25. Bxc1 {[%emt 0:00:02]} Rb8 {[%emt 0:00:52]} 26. Be3 {[%emt 0:00:21]} Bf8 {[%emt 0:00:59]} 27. Ne4 {[%emt 0:01:55]} Rc8 {[%emt 0:00:23]} 28. Rf1 {[%emt 0:02:28]} Rc4 {[%emt 0:00:19]} 29. Ng5 {[%emt 0:00:23]} Rc3 {[%emt 0:00:17]} 30. Bc1 {[%emt 0:00:17]} Nb6 {[%emt 0:01:51]} 31. Ne4 {[%emt 0:00:20]} Rc4 {[%emt 0:00:26]} 32. Nf6+ {[%emt 0:00:25]} Kg7 {[%emt 0:00:17]} 33. Be3 {[%emt 0:00:06]} 1/2-1/2

[Event "Kupreichik Memorial Rapid 2019"]
[Site "Minsk"]
[Date "2019.08.16"]
[Round "7.34"]
[White "Uzlavataya, Anhelina"]
[Black "Drobyshevsky, Vasily"]
[Result "1-0"]
[ECO "A04"]
[WhiteElo "2051"]
[BlackElo "1441"]
[Annotator "NA"]
[PlyCount "122"]
[EventDate "2019.08.15"]
[EventType "swiss"]
[EventCountry "BLR"]
[SourceTitle "playchess.com"]
[Source "ChessBase"]
[SourceQuality "1"]
[TimeControl "900+10"]

1. Nf3 {[%emt 0:00:00]} c5 {[%emt 0:00:00]} 2. g3 {[%emt 0:00:00]} Nc6 {[%emt 0:00:00]} 3. d4 {[%emt 0:00:04]} e6 {[%emt 0:00:03]} 4. Bg2 {[%emt 0:00:04]} d5 {[%emt 0:00:05]} 5. O-O {[%emt 0:00:08]} Nf6 {[%emt 0:00:02]} 6. c4 {[%emt 0:00:02]} Be7 {[%emt 0:00:06]} 7. cxd5 {[%emt 0:00:08]} exd5 {[%emt 0:00:02]} 8. Nc3 {[%emt 0:00:18]} c4 {[%emt 0:00:02]} 9. Ne5 {[%emt 0:01:21]} O-O {[%emt 0:01:48]} 10. e4 {[%emt 0:02:43]} dxe4 {[%emt 0:00:16]} 11. Nxc6 {[%emt 0:00:31]} bxc6 {[%emt 0:00:06]} 12. Nxe4 {[%emt 0:00:04]} Bb7 {[%emt 0:02:19]} 13. Nxf6+ {[%emt 0:02:30]} Bxf6 {[%emt 0:00:03]} 14. Be3 {[%emt 0:00:02]} Rb8 {[%emt 0:00:15]} 15. Qd2 {[%emt 0:02:54]} Qd7 {[%emt 0:01:00]} 16. Rfd1 {[%emt 0:00:23]} Rfd8 {[%emt 0:00:30]} 17. Rac1 {[%emt 0:01:26]} Ba6 {[%emt 0:00:42]} 18. Qa5 {[%emt 0:00:05]} Qb7 {[%emt 0:00:32]} 19. Rd2 {[%emt 0:01:19]} Qb5 {[%emt 0:01:04]} 20. Qxb5 {[%emt 0:00:40]} cxb5 {[%emt 0:00:33]} 21. d5 {[%emt 0:00:15]} Bb7 {[%emt 0:01:35]} 22. Bxa7 {[%emt 0:00:22]} Ra8 {[%emt 0:00:05]} 23. Bb6 {[%emt 0:00:03]} Rd7 {[%emt 0:01:28]} 24. a3 {[%emt 0:00:10]} c3 {[%emt 0:02:55]} 25. bxc3 {[%emt 0:00:01]} Rxa3 {[%emt 0:00:05]} 26. Bd4 {[%emt 0:00:41]} Bg5 {[%emt 0:01:23]} 27. f4 {[%emt 0:00:06]} Bd8 {[%emt 0:00:08]} 28. Bc5 {[%emt 0:00:14]} Ra8 {[%emt 0:00:15]} 29. Bb4 {[%emt 0:00:04]} Bb6+ {[%emt 0:00:14]} 30. Kf1 {[%emt 0:00:08]} Be3 {[%emt 0:00:11]} 31. Rcd1 {[%emt 0:00:34]} Bxd2 {[%emt 0:00:02]} 32. Rxd2 {[%emt 0:00:01]} Rad8 {[%emt 0:00:09]} 33. d6 {[%emt 0:00:04]} Bxg2+ {[%emt 0:00:07]} 34. Kxg2 {[%emt 0:00:01]} f6 {[%emt 0:00:20]} 35. Rd5 {[%emt 0:00:05]} Rb8 {[%emt 0:00:06]} 36. Kf3 {[%emt 0:00:05]} Kf7 {[%emt 0:00:02]} 37. Ke4 {[%emt 0:00:23]} Ke6 {[%emt 0:00:02]} 38. Rd2 {[%emt 0:00:13]} g6 {[%emt 0:00:08]} 39. Kd4 {[%emt 0:00:34]} Rc8 {[%emt 0:00:48]} 40. Re2+ {[%emt 0:00:12]} Kf7 {[%emt 0:00:02]} 41. Kd5 {[%emt 0:00:11]} Rc4 {[%emt 0:00:52]} 42. Ra2 {[%emt 0:00:10]} Rc8 {[%emt 0:00:13]} 43. Ra5 {[%emt 0:00:02]} Rb8 {[%emt 0:00:02]} 44. Kc6 {[%emt 0:00:08]} Rdb7 {[%emt 0:00:13]} 45. Bc5 {[%emt 0:01:46]} Ke6 {[%emt 0:00:54]} 46. Ra6 {[%emt 0:00:33]} Rf7 {[%emt 0:00:10]} 47. Bb4 {[%emt 0:00:48]} h5 {[%emt 0:00:14]} 48. Kc5 {[%emt 0:00:10]} g5 {[%emt 0:00:10]} 49. fxg5 {[%emt 0:00:04]} fxg5 {[%emt 0:00:01]} 50. Kc6 {[%emt 0:00:07]} h4 {[%emt 0:00:06]} 51. gxh4 {[%emt 0:00:07]} gxh4 {[%emt 0:00:01]} 52. d7 {[%emt 0:00:03]} Kf5 {[%emt 0:00:46]} 53. Kc7 {[%emt 0:00:10]} Rg8 {[%emt 0:00:10]} 54. Rd6 {[%emt 0:00:30]} h3 {[%emt 0:00:16]} 55. Rd5+ {[%emt 0:00:07]} Ke6 {[%emt 0:00:07]} 56. Rd6+ {[%emt 0:00:04]} Kf5 {[%emt 0:00:01]} 57. Rd3 {[%emt 0:00:14]} Ke6 {[%emt 0:00:10]} 58. Kc6 {[%emt 0:00:05]} Rd8 {[%emt 0:00:25]} 59. Re3+ {[%emt 0:00:03]} Kf5 60. Rf3+ Kg6 61. Rxf7 Kxf7 1-0

[Event "Kupreichik Memorial Rapid 2019"]
[Site "Minsk"]
[Date "2019.08.16"]
[Round "7.35"]
[White "Pogorelov, Aleksey"]
[Black "Stsepkina, Yauheniya"]
[Result "0-1"]
[ECO "A48"]
[WhiteElo "1548"]
[BlackElo "1537"]
[Annotator "NA"]
[PlyCount "140"]
[EventDate "2019.08.15"]
[EventType "swiss"]
[EventCountry "BLR"]
[SourceTitle "playchess.com"]
[Source "ChessBase"]
[SourceQuality "1"]
[TimeControl "900+10"]

1. d4 {[%emt 0:00:00]} Nf6 {[%emt 0:00:00]} 2. Nf3 {[%emt 0:00:00]} g6 {[%emt 0:00:00]} 3. Bf4 {[%emt 0:00:00]} Bg7 {[%emt 0:00:00]} 4. c3 {[%emt 0:00:00]} O-O {[%emt 0:00:00]} 5. e3 {[%emt 0:00:22]} d6 {[%emt 0:00:00]} 6. Bd3 {[%emt 0:00:06]} Nbd7 {[%emt 0:00:02]} 7. Nbd2 {[%emt 0:00:05]} Re8 {[%emt 0:00:05]} 8. Bc2 {[%emt 0:01:09]} b6 {[%emt 0:00:26]} 9. O-O {[%emt 0:00:07]} Bb7 {[%emt 0:00:01]} 10. h3 {[%emt 0:00:17]} c5 {[%emt 0:03:29]} 11. Re1 {[%emt 0:00:26]} d5 {[%emt 0:00:32]} 12. Rc1 {[%emt 0:00:27]} h6 {[%emt 0:00:39]} 13. Ne5 {[%emt 0:00:35]} Nxe5 {[%emt 0:00:21]} 14. Bxe5 {[%emt 0:00:02]} Nd7 {[%emt 0:00:14]} 15. Bxg7 {[%emt 0:00:39]} Kxg7 {[%emt 0:00:01]} 16. Nf3 {[%emt 0:00:04]} e5 {[%emt 0:00:23]} 17. e4 {[%emt 0:00:37]} exd4 {[%emt 0:00:40]} 18. exd5 {[%emt 0:00:14]} Rxe1+ {[%emt 0:04:14]} 19. Nxe1 {[%emt 0:00:22]} Bxd5 {[%emt 0:00:30]} 20. cxd4 {[%emt 0:00:17]} Qg5 {[%emt 0:00:05]} 21. g3 {[%emt 0:01:57]} Rd8 {[%emt 0:00:25]} 22. dxc5 {[%emt 0:01:02]} Nxc5 {[%emt 0:00:03]} 23. Qd4+ {[%emt 0:00:24]} Kg8 {[%emt 0:00:31]} 24. Rd1 {[%emt 0:00:44]} Ne6 {[%emt 0:00:08]} 25. Qa4 {[%emt 0:02:02]} Qh5 {[%emt 0:02:50]} 26. Kh2 {[%emt 0:01:54]} Kg7 {[%emt 0:02:01]} 27. Ng2 {[%emt 0:01:24]} Ng5 {[%emt 0:01:35]} 28. Nf4 {[%emt 0:02:10]} Nf3+ {[%emt 0:00:05]} 29. Kg2 {[%emt 0:00:27]} Ne5+ {[%emt 0:00:14]} 30. Rxd5 {[%emt 0:01:46]} Qf3+ {[%emt 0:00:08]} 31. Kg1 {[%emt 0:00:06]} Rxd5 {[%emt 0:00:12]} 32. Nxd5 {[%emt 0:00:09]} Qxd5 {[%emt 0:00:11]} 33. Qe4 {[%emt 0:00:05]} Nf3+ {[%emt 0:00:10]} 34. Kg2 {[%emt 0:00:23]} Qxe4 {[%emt 0:00:12]} 35. Bxe4 {[%emt 0:00:03]} Nd4 {[%emt 0:00:03]} 36. b3 {[%emt 0:00:07]} Kf6 {[%emt 0:00:01]} 37. f4 {[%emt 0:00:06]} Ne2 {[%emt 0:00:05]} 38. a4 {[%emt 0:00:10]} Nd4 {[%emt 0:00:13]} 39. Bd5 {[%emt 0:00:04]} Ke7 {[%emt 0:00:04]} 40. Kf2 {[%emt 0:00:06]} f6 {[%emt 0:00:01]} 41. Ke3 {[%emt 0:00:07]} Nf5+ {[%emt 0:00:03]} 42. Kf3 {[%emt 0:00:13]} Nd4+ {[%emt 0:00:47]} 43. Ke3 {[%emt 0:00:11]} Nf5+ {[%emt 0:00:03]} 44. Kf3 {[%emt 0:00:01]} Nd6 {[%emt 0:00:15]} 45. Ke3 {[%emt 0:00:20]} Nf5+ {[%emt 0:00:13]} 46. Kf3 {[%emt 0:00:01]} Nd6 {[%emt 0:00:07]} 47. Ke3 {[%emt 0:00:03]} Nf5+ {[%emt 0:00:01]} 48. Kf3 {[%emt 0:00:01]} Nd4+ {[%emt 0:00:01]} 49. Ke3 {[%emt 0:00:02]} Nf5+ {[%emt 0:00:01]} 50. Kf3 {[%emt 0:00:03]} Nd6 {[%emt 0:00:01]} 51. Ke3 {[%emt 0:00:02]} Nf5+ {[%emt 0:00:01]} 52. Kf3 {[%emt 0:00:05]} Kd6 {[%emt 0:00:07]} 53. Bc4 {[%emt 0:00:16]} Kc5 {[%emt 0:00:10]} 54. g4 {[%emt 0:00:21]} Nd6 {[%emt 0:00:38]} 55. Bg8 {[%emt 0:00:36]} Kd4 {[%emt 0:00:12]} 56. h4 {[%emt 0:00:13]} g5 {[%emt 0:00:30]} 57. hxg5 {[%emt 0:00:10]} hxg5 {[%emt 0:00:01]} 58. fxg5 {[%emt 0:00:05]} fxg5 {[%emt 0:00:01]} 59. Be6 {[%emt 0:00:08]} Nb7 {[%emt 0:00:21]} 60. b4 {[%emt 0:00:52]} Kc3 {[%emt 0:00:15]} 61. a5 {[%emt 0:00:09]} bxa5 {[%emt 0:00:08]} 62. bxa5 {[%emt 0:00:01]} Nxa5 {[%emt 0:00:08]} 63. Ke4 {[%emt 0:00:02]} Nc6 {[%emt 0:00:03]} 64. Bg8 {[%emt 0:00:13]} Nd4 {[%emt 0:00:11]} 65. Ke5 {[%emt 0:00:07]} a5 {[%emt 0:00:18]} 66. Kf6 {[%emt 0:00:17]} a4 {[%emt 0:00:01]} 67. Kxg5 {[%emt 0:00:04]} a3 {[%emt 0:00:01]} 68. Kf4 {[%emt 0:00:26]} Nb3 {[%emt 0:00:02]} 69. g5 {[%emt 0:00:08]} a2 {[%emt 0:00:02]} 70. Bxb3 {[%emt 0:00:11]} Kxb3 {[%emt 0:00:00]} 0-1

[Event "Kupreichik Memorial Rapid 2019"]
[Site "Minsk"]
[Date "2019.08.16"]
[Round "7.36"]
[White "Nikolaev, Dmitry"]
[Black "Yasiukovich, Sergei"]
[Result "1-0"]
[ECO "A06"]
[WhiteElo "1677"]
[BlackElo "1529"]
[Annotator "NA"]
[PlyCount "144"]
[EventDate "2019.08.15"]
[EventType "swiss"]
[EventCountry "BLR"]
[SourceTitle "playchess.com"]
[Source "ChessBase"]
[SourceQuality "1"]
[TimeControl "900+10"]

1. Nf3 {[%emt 0:00:00]} d5 {[%emt 0:00:00]} 2. c4 {[%emt 0:00:00]} c6 {[%emt 0:00:00]} 3. cxd5 {[%emt 0:00:04]} cxd5 {[%emt 0:00:00]} 4. g3 {[%emt 0:00:12]} Nf6 {[%emt 0:00:00]} 5. Bg2 {[%emt 0:00:02]} g6 {[%emt 0:00:01]} 6. b3 {[%emt 0:00:09]} Bg7 {[%emt 0:00:01]} 7. Bb2 {[%emt 0:00:02]} O-O {[%emt 0:00:02]} 8. d4 {[%emt 0:00:12]} Nc6 {[%emt 0:00:06]} 9. O-O {[%emt 0:00:04]} Bg4 {[%emt 0:00:18]} 10. Nbd2 {[%emt 0:00:13]} Qd7 {[%emt 0:00:12]} 11. Re1 {[%emt 0:00:26]} Bh3 {[%emt 0:00:04]} 12. Bh1 {[%emt 0:00:01]} Rac8 {[%emt 0:00:38]} 13. Rc1 {[%emt 0:01:27]} Rfd8 {[%emt 0:01:23]} 14. Nh4 {[%emt 0:01:37]} g5 {[%emt 0:01:46]} 15. Ng2 {[%emt 0:00:02]} h6 {[%emt 0:00:18]} 16. Ne3 {[%emt 0:01:58]} Be6 {[%emt 0:00:33]} 17. Rc5 {[%emt 0:00:31]} b6 {[%emt 0:01:12]} 18. Rc2 {[%emt 0:00:30]} Nb4 {[%emt 0:00:26]} 19. Rxc8 {[%emt 0:00:03]} Rxc8 {[%emt 0:00:02]} 20. a3 {[%emt 0:00:42]} Nc6 {[%emt 0:00:01]} 21. Qb1 {[%emt 0:00:03]} Ng4 {[%emt 0:00:49]} 22. Qd3 {[%emt 0:01:41]} Nxe3 {[%emt 0:01:00]} 23. Qxe3 {[%emt 0:00:02]} Bf5 {[%emt 0:00:07]} 24. Rc1 {[%emt 0:00:16]} e6 {[%emt 0:00:35]} 25. Nf3 {[%emt 0:00:19]} Be4 {[%emt 0:01:37]} 26. b4 {[%emt 0:00:56]} Bxf3 {[%emt 0:00:13]} 27. Bxf3 {[%emt 0:00:06]} Ne7 {[%emt 0:00:02]} 28. Qd2 {[%emt 0:01:35]} Rxc1+ {[%emt 0:00:56]} 29. Qxc1 {[%emt 0:00:02]} Qc6 {[%emt 0:00:07]} 30. e3 {[%emt 0:00:21]} Qxc1+ {[%emt 0:00:11]} 31. Bxc1 {[%emt 0:00:01]} Nc8 {[%emt 0:01:14]} 32. Be2 {[%emt 0:00:59]} Nd6 {[%emt 0:00:02]} 33. a4 {[%emt 0:00:24]} Ne4 {[%emt 0:00:25]} 34. Bd3 {[%emt 0:00:31]} Bf8 {[%emt 0:01:07]} 35. Bxe4 {[%emt 0:00:35]} dxe4 {[%emt 0:00:02]} 36. b5 {[%emt 0:00:02]} Bb4 {[%emt 0:00:40]} 37. g4 {[%emt 0:00:25]} e5 {[%emt 0:00:48]} 38. Bb2 {[%emt 0:02:27]} exd4 {[%emt 0:00:16]} 39. Bxd4 {[%emt 0:00:03]} Bd6 {[%emt 0:00:51]} 40. h4 {[%emt 0:00:37]} gxh4 {[%emt 0:00:36]} 41. Kg2 {[%emt 0:00:02]} Kh7 {[%emt 0:00:28]} 42. Kh3 {[%emt 0:00:01]} Kg6 {[%emt 0:00:09]} 43. Kxh4 {[%emt 0:00:02]} f6 {[%emt 0:00:17]} 44. Bc3 {[%emt 0:01:15]} Bc5 {[%emt 0:00:39]} 45. a5 {[%emt 0:00:04]} bxa5 {[%emt 0:00:32]} 46. Bxa5 {[%emt 0:00:02]} Bb6 {[%emt 0:00:22]} 47. Bb4 {[%emt 0:00:05]} Bd8 {[%emt 0:00:09]} 48. Bd6 {[%emt 0:00:09]} f5+ {[%emt 0:00:08]} 49. Kg3 {[%emt 0:00:02]} fxg4 {[%emt 0:00:06]} 50. Kxg4 {[%emt 0:00:01]} Bb6 {[%emt 0:00:54]} 51. Kf4 {[%emt 0:00:20]} h5 {[%emt 0:00:07]} 52. Be7 {[%emt 0:00:18]} Kf7 {[%emt 0:00:07]} 53. Bh4 {[%emt 0:00:17]} Ke6 {[%emt 0:00:34]} 54. Kxe4 {[%emt 0:00:01]} Kd6 {[%emt 0:00:04]} 55. Kf5 {[%emt 0:00:37]} Kc5 {[%emt 0:00:09]} 56. Kg6 {[%emt 0:00:03]} Kxb5 {[%emt 0:00:02]} 57. Kxh5 {[%emt 0:00:01]} Kc4 {[%emt 0:00:05]} 58. Kg4 {[%emt 0:00:32]} Kd3 {[%emt 0:00:16]} 59. Kf5 {[%emt 0:00:09]} a5 {[%emt 0:00:09]} 60. e4 {[%emt 0:00:07]} Bd4 {[%emt 0:00:06]} 61. f4 {[%emt 0:00:10]} a4 {[%emt 0:00:03]} 62. Be7 {[%emt 0:00:02]} Kc4 {[%emt 0:00:07]} 63. e5 {[%emt 0:00:35]} Bc5 {[%emt 0:00:06]} 64. Bxc5 {[%emt 0:00:31]} Kxc5 {[%emt 0:00:01]} 65. e6 {[%emt 0:00:01]} a3 {[%emt 0:00:12]} 66. e7 {[%emt 0:00:14]} a2 {[%emt 0:00:02]} 67. e8=Q {[%emt 0:00:02]} a1=Q {[%emt 0:00:01]} 68. Qe5+ {[%emt 0:00:09]} Qxe5+ {[%emt 0:00:02]} 69. Kxe5 {[%emt 0:00:02]} Kc6 {[%emt 0:00:02]} 70. Ke6 {[%emt 0:00:02]} Kc7 {[%emt 0:00:01]} 71. Ke7 {[%emt 0:00:01]} Kc6 {[%emt 0:00:01]} 72. f5 {[%emt 0:00:01]} Kd5 1-0

[Event "Kupreichik Memorial Rapid 2019"]
[Site "Minsk"]
[Date "2019.08.16"]
[Round "7.37"]
[White "Novik, Nikita"]
[Black "Karlov, Egor"]
[Result "1-0"]
[ECO "E00"]
[WhiteElo "1355"]
[BlackElo "1728"]
[Annotator "NA"]
[PlyCount "47"]
[EventDate "2019.08.15"]
[EventType "swiss"]
[EventCountry "BLR"]
[SourceTitle "playchess.com"]
[Source "ChessBase"]
[SourceQuality "1"]
[TimeControl "900+10"]

1. d4 {[%emt 0:00:00]} Nf6 {[%emt 0:00:00]} 2. c4 {[%emt 0:00:00]} e6 {[%emt 0:00:00]} 3. e3 {[%emt 0:00:00]} d5 {[%emt 0:00:00]} 4. cxd5 {[%emt 0:00:02]} exd5 {[%emt 0:00:03]} 5. Nc3 {[%emt 0:00:01]} c6 {[%emt 0:00:01]} 6. Nf3 {[%emt 0:00:07]} Bd6 {[%emt 0:00:06]} 7. Ne5 {[%emt 0:00:40]} Nbd7 {[%emt 0:00:23]} 8. f4 {[%emt 0:00:04]} O-O {[%emt 0:00:31]} 9. Bd3 {[%emt 0:00:27]} c5 {[%emt 0:01:17]} 10. O-O {[%emt 0:01:50]} c4 {[%emt 0:02:13]} 11. Bc2 {[%emt 0:00:22]} Bc7 {[%emt 0:01:57]} 12. h3 {[%emt 0:01:27]} a6 {[%emt 0:03:52]} 13. Qf3 {[%emt 0:02:21]} Nb6 {[%emt 0:00:20]} 14. Bd2 {[%emt 0:00:33]} Bxe5 {[%emt 0:03:05]} 15. fxe5 {[%emt 0:00:28]} Ne8 {[%emt 0:00:05]} 16. Qh5 {[%emt 0:01:14]} g6 {[%emt 0:00:23]} 17. Qh6 {[%emt 0:00:47]} Ng7 {[%emt 0:01:54]} 18. Be1 {[%emt 0:00:37]} Bf5 {[%emt 0:00:37]} 19. Bh4 {[%emt 0:00:17]} Qd7 {[%emt 0:00:36]} 20. Bf6 {[%emt 0:00:38]} Ne8 {[%emt 0:00:30]} 21. Bxf5 {[%emt 0:00:04]} Qc6 {[%emt 0:00:18]} 22. Bg4 {[%emt 0:00:49]} Nd7 {[%emt 0:00:18]} 23. Bxd7 {[%emt 0:00:07]} Qxd7 {[%emt 0:00:02]} 24. Rf4 {[%emt 0:00:23]} 1-0

[Event "Kupreichik Memorial Rapid 2019"]
[Site "Minsk"]
[Date "2019.08.16"]
[Round "7.38"]
[White "Kozlov, Valentin"]
[Black "Karmishyn, Vadzim"]
[Result "1-0"]
[ECO "B60"]
[WhiteElo "1871"]
[BlackElo "1494"]
[Annotator "NA"]
[PlyCount "73"]
[EventDate "2019.08.15"]
[EventType "swiss"]
[EventCountry "BLR"]
[SourceTitle "playchess.com"]
[Source "ChessBase"]
[SourceQuality "1"]
[TimeControl "900+10"]

1. e4 {[%emt 0:00:00]} c5 {[%emt 0:00:00]} 2. Nf3 {[%emt 0:00:00]} Nc6 {[%emt 0:00:10]} 3. d4 {[%emt 0:00:00]} cxd4 {[%emt 0:00:13]} 4. Nxd4 {[%emt 0:00:00]} Nf6 {[%emt 0:00:17]} 5. Nc3 {[%emt 0:00:00]} d6 {[%emt 0:00:01]} 6. Bg5 {[%emt 0:00:27]} a6 {[%emt 0:00:33]} 7. Qd2 {[%emt 0:00:28]} Qb6 {[%emt 0:00:28]} 8. Nb3 {[%emt 0:00:32]} Ng4 {[%emt 0:01:13]} 9. h3 {[%emt 0:00:31]} Nge5 {[%emt 0:00:23]} 10. Be3 {[%emt 0:00:07]} Qd8 {[%emt 0:01:12]} 11. Nd5 {[%emt 0:01:13]} Nd7 {[%emt 0:00:55]} 12. Be2 {[%emt 0:00:36]} g6 {[%emt 0:01:32]} 13. Bh6 {[%emt 0:00:34]} Nb6 {[%emt 0:01:10]} 14. Bxf8 {[%emt 0:00:19]} Kxf8 {[%emt 0:00:32]} 15. O-O {[%emt 0:00:58]} Kg7 {[%emt 0:01:05]} 16. Qc3+ {[%emt 0:00:57]} f6 {[%emt 0:00:07]} 17. a4 {[%emt 0:00:48]} Bd7 {[%emt 0:01:27]} 18. Nf4 {[%emt 0:02:22]} Ne5 {[%emt 0:01:06]} 19. a5 {[%emt 0:00:19]} Rc8 {[%emt 0:00:51]} 20. Qd2 {[%emt 0:00:36]} Nbc4 {[%emt 0:00:24]} 21. Qc1 {[%emt 0:00:13]} Bc6 {[%emt 0:00:40]} 22. Ne6+ {[%emt 0:00:09]} Kf7 {[%emt 0:00:09]} 23. Nxd8+ {[%emt 0:00:02]} Rhxd8 {[%emt 0:00:01]} 24. f4 {[%emt 0:00:41]} Bxe4 {[%emt 0:00:29]} 25. fxe5 {[%emt 0:00:11]} Nxe5 {[%emt 0:00:07]} 26. c3 {[%emt 0:00:14]} Kg7 {[%emt 0:00:21]} 27. Nd4 {[%emt 0:00:07]} Bd5 {[%emt 0:00:36]} 28. Bf3 {[%emt 0:00:47]} Nxf3+ {[%emt 0:00:44]} 29. Nxf3 {[%emt 0:00:16]} Rc4 {[%emt 0:00:28]} 30. Qd2 {[%emt 0:00:18]} Bc6 {[%emt 0:01:05]} 31. Nd4 {[%emt 0:00:13]} Bd7 {[%emt 0:00:02]} 32. Rae1 {[%emt 0:00:37]} e5 {[%emt 0:00:22]} 33. Nc2 {[%emt 0:01:28]} Bc6 {[%emt 0:00:27]} 34. Ne3 {[%emt 0:00:16]} Ra4 {[%emt 0:01:06]} 35. Ng4 {[%emt 0:00:17]} Rxg4 36. hxg4 d5 37. g5 1-0